bitfinex/quotes_BTCUSD_20220111
["timestamp","ask_amount","ask_price","bid_price","bid_amount"]
[1641908501022,0.047,41672.0,41671.0,0.002]
[1641908501222,0.297,41672.0,41671.0,0.002]
[1641908501666,0.67242,41672.0,41671.0,0.002]
[1641908502068,1.00353206,41672.0,41671.0,0.002]
[1641908502268,0.72542,41672.0,41669.0,0.0179]
[1641908502472,0.602486,41670.0,41669.0,0.0179]
[1641908502668,0.452486,41670.0,41669.0,0.0131456]
[1641908502968,0.77240242,41670.0,41669.0,0.0131456]
[1641908503168,0.78340242,41670.0,41669.0,0.0131456]
[1641908503668,0.78340242,41670.0,41667.0,0.060013]
[1641908503669,0.68340242,41670.0,41667.0,0.060013]
[1641908504068,0.74341842,41670.0,41667.0,0.060013]
[1641908504269,0.412502,41670.0,41667.0,0.060013]
[1641908504670,0.412502,41670.0,41665.0,0.0131456]
[1641908504977,0.30544658,41669.0,41665.0,0.0131456]
[1641908505216,0.060016,41670.0,41665.0,0.0131456]
[1641908505612,0.060016,41670.0,41665.0,0.0631456]
[1641908505813,0.30565964,41669.0,41665.0,0.0631456]
[1641908506013,0.060016,41670.0,41665.0,0.0631456]
[1641908506214,0.00015714,41669.0,41665.0,0.0631456]
[1641908506714,0.00015714,41669.0,41665.0,0.0131456]
[1641908506915,0.30617231,41669.0,41665.0,0.0131456]
[1641908507115,0.40617231,41669.0,41665.0,0.0131456]
[1641908507519,0.68351907,41666.0,41665.0,0.0131456]
[1641908507715,1.05893907,41666.0,41665.0,0.0131456]
[1641908507917,0.37542,41666.0,41665.0,0.0131456]
[1641908508115,0.30615691,41667.0,41665.0,0.0131456]
[1641908508315,0.36617691,41667.0,41663.0,0.0631456]
[1641908508517,0.36617691,41667.0,41663.0,0.0131456]
[1641908508817,0.68817333,41666.0,41663.0,0.0131456]
[1641908509064,0.68817333,41664.0,41663.0,0.0131456]
[1641908509265,1.06359333,41664.0,41663.0,0.0131456]
[1641908509464,1.06359333,41664.0,41663.0,0.0631456]
[1641908510069,0.68817333,41665.0,41663.0,0.0631456]
[1641908510468,0.68817333,41665.0,41663.0,0.0131456]
[1641908510469,1.01107514,41664.0,41663.0,0.0131456]
[1641908510768,1.53419514,41664.0,41663.0,0.0131456]
[1641908511167,1.53565725,41664.0,41663.0,0.0131456]
[1641908511365,1.53565725,41664.0,41660.0,0.0131456]
[1641908511567,1.052486,41661.0,41660.0,0.0131456]
[1641908511767,1.4455916,41661.0,41660.0,0.0131456]
[1641908511967,0.8455916,41661.0,41660.0,0.0131456]
[1641908512572,1.92537599,41661.0,41660.0,0.0131456]
[1641908512819,1.57997039,41661.0,41660.0,0.0131456]
[1641908513220,0.37542,41660.0,41654.0,0.00176551]
[1641908513418,0.0477,41659.0,41658.0,0.00044134]
[1641908513620,0.460218,41659.0,41658.0,0.00044134]
[1641908514016,0.560218,41659.0,41658.0,0.00044134]
[1641908514217,1.57996439,41659.0,41658.0,0.00044134]
[1641908514617,1.47996439,41659.0,41653.0,0.060034]
[1641908514818,1.22747839,41659.0,41653.0,0.060034]
[1641908515223,1.22747839,41659.0,41652.0,0.1]
[1641908515224,0.58944597,41656.0,41652.0,0.1]
[1641908515420,0.107739,41655.0,41652.0,0.05]
[1641908515620,0.107739,41655.0,41651.0,0.00863965]
[1641908515921,0.107739,41655.0,41654.0,0.00028344]
[1641908516468,0.69718497,41655.0,41654.0,0.00028344]
[1641908516668,0.79718497,41655.0,41654.0,0.00028344]
[1641908516869,0.207739,41655.0,41654.0,0.00028344]
[1641908517070,0.207739,41655.0,41652.0,0.00028345]
[1641908517071,0.1597,41655.0,41652.0,0.00028345]
[1641908517468,0.74935406,41655.0,41652.0,0.05028345]
[1641908518169,0.74935406,41655.0,41652.0,0.05]
[1641908518370,0.73735406,41655.0,41652.0,0.05]
[1641908518570,0.73735406,41655.0,41652.0,0.110036]
[1641908518972,0.63735406,41655.0,41652.0,0.110036]
[1641908519175,0.64835406,41655.0,41652.0,0.110036]
[1641908519374,0.64835406,41655.0,41652.0,0.160036]
[1641908520217,0.64835406,41655.0,41652.0,0.05]
[1641908520415,0.58965406,41654.0,41652.0,0.05]
[1641908520620,0.68965406,41654.0,41652.0,0.05]
[1641908520816,0.68965406,41654.0,41651.0,0.1291396]
[1641908520817,0.68965406,41654.0,41651.0,0.24920741]
[1641908521014,0.68982232,41654.0,41651.0,0.1891746]
[1641908521213,0.70282232,41654.0,41651.0,0.1891746]
[1641908521614,0.60282232,41654.0,41652.0,0.05]
[1641908521817,0.01316826,41654.0,41652.0,0.05]
[1641908522215,0.01316826,41654.0,41651.0,0.05863965]
[1641908522216,0.16174583,41653.0,41651.0,0.05863965]
[1641908522416,0.16174583,41653.0,41651.0,0.00863965]
[1641908523220,0.0477,41652.0,41651.0,0.00863965]
[1641908525265,0.36303448,41652.0,41651.0,0.00863965]
[1641908525466,0.46303448,41652.0,41651.0,0.00863965]
[1641908526067,0.46320184,41652.0,41651.0,0.00863965]
[1641908526466,0.45120184,41652.0,41651.0,0.00863965]
[1641908526668,0.14786736,41652.0,41651.0,0.00863965]
[1641908526867,0.45083844,41652.0,41651.0,0.00863965]
[1641908527067,0.14786736,41652.0,41651.0,0.00863965]
[1641908527267,0.15786736,41652.0,41651.0,0.00863965]
[1641908527914,0.910053,41651.0,41650.0,1.22499576]
[1641908528114,2.36565785,41651.0,41650.0,0.74450876]
[1641908528314,1.86565785,41651.0,41650.0,0.74450876]
[1641908528518,1.86565785,41651.0,41650.0,0.26399076]
[1641908528914,2.88569367,41651.0,41650.0,0.26399076]
[1641908529113,0.352486,41647.0,41643.0,0.0011]
[1641908529314,0.37542,41645.0,41643.0,0.0011]
[1641908529514,0.52312,41645.0,41643.0,0.0011]
[1641908530119,1.47974101,41645.0,41643.0,0.0011]
[1641908530317,1.47974101,41645.0,41641.0,0.0014917]
[1641908530318,1.47974101,41645.0,41641.0,0.00065512]
[1641908530516,1.47974101,41645.0,41635.0,0.00025179]
[1641908530715,0.45970519,41645.0,41635.0,0.00025179]
[1641908530917,1.1513394,41645.0,41635.0,0.00025179]
[1641908531125,1.15750361,41645.0,41641.0,0.25527779]
[1641908531320,1.12091842,41645.0,41642.0,0.41024972]
[1641908531573,1.12091842,41645.0,41639.0,0.12009]
[1641908531770,0.5925947,41643.0,41639.0,0.22009]
[1641908532372,0.5925947,41643.0,41642.0,0.25107683]
[1641908532572,0.5925947,41643.0,41642.0,0.35107683]
[1641908532772,0.59275891,41645.0,41642.0,0.05]
[1641908532972,0.59275891,41645.0,41639.0,0.22009]
[1641908532973,0.37542,41644.0,41639.0,0.22009]
[1641908533174,0.011,41643.0,41640.0,0.060044]
[1641908533678,0.011,41643.0,41641.0,0.34891141]
[1641908533875,0.011,41643.0,41640.0,0.18012353]
[1641908533876,0.011,41643.0,41640.0,0.110044]
[1641908534373,0.00016421,41645.0,41640.0,0.060044]
[1641908534575,0.00016421,41645.0,41641.0,0.060045]
[1641908534776,0.5925947,41644.0,41641.0,0.060045]
[1641908534974,0.5925947,41644.0,41642.0,0.36116246]
[1641908535230,0.5925947,41644.0,41642.0,0.47120742]
[1641908535525,0.5925947,41644.0,41642.0,0.16004496]
[1641908535726,0.59975891,41645.0,41642.0,0.16004496]
[1641908535927,0.37542,41644.0,41639.0,0.24068206]
[1641908536128,0.00739794,41644.0,41642.0,0.05]
[1641908536526,0.00739794,41644.0,41641.0,0.05051054]
[1641908536727,0.59999264,41644.0,41641.0,0.00051054]
[1641908536930,0.59999264,41644.0,41641.0,0.05051054]
[1641908537128,0.37542,41643.0,41641.0,0.00051054]
[1641908537528,0.37542,41643.0,41640.0,0.00051055]
[1641908537732,0.00816376,41644.0,41640.0,0.00051055]
[1641908537930,0.60075846,41644.0,41640.0,0.00051055]
[1641908538326,0.60075846,41644.0,41641.0,0.180124]
[1641908538527,0.59275846,41644.0,41643.0,0.65571819]
[1641908538729,0.00016376,41644.0,41642.0,0.48905969]
[1641908538967,0.00016376,41644.0,41642.0,0.05]
[1641908539164,0.00016376,41644.0,41642.0,0.11803737]
[1641908539165,0.01616376,41644.0,41642.0,0.11803737]
[1641908539965,0.01616376,41644.0,41643.0,0.27263963]
[1641908540165,0.01616376,41644.0,41643.0,0.32263963]
[1641908540365,0.01616376,41644.0,41643.0,0.69805963]
[1641908540568,0.5925947,41649.0,41644.0,0.93542]
[1641908540569,0.5925332,41649.0,41644.0,0.93542]
[1641908540766,0.5925332,41649.0,41648.0,0.00123688]
[1641908540968,0.5925332,41651.0,41648.0,0.29789654]
[1641908541367,0.5925332,41651.0,41649.0,0.24235642]
[1641908541571,0.69163421,41655.0,41649.0,0.23735642]
[1641908541766,0.69163421,41655.0,41651.0,0.060019]
[1641908541967,0.69163421,41655.0,41652.0,0.23005312]
[1641908542167,0.69163421,41655.0,41652.0,0.28005312]
[1641908542569,0.69163421,41658.0,41655.0,0.120046]
[1641908543022,0.69163421,41658.0,41655.0,0.220046]
[1641908543220,0.69163421,41658.0,41655.0,0.228046]
[1641908543624,0.69163421,41658.0,41656.0,0.06002081]
[1641908544023,9.69163421,41658.0,41656.0,0.06002081]
[1641908544226,0.37542,41657.0,41656.0,0.06002081]
[1641908545224,0.37542,41657.0,41656.0,0.07202081]
[1641908546325,9.0,41658.0,41656.0,0.3184094]
[1641908546571,0.37542,41657.0,41656.0,0.06002081]
[1641908547171,0.37542,41657.0,41656.0,0.07002081]
[1641908547472,0.37542,41657.0,41656.0,0.01]
[1641908548571,0.37542,41657.0,41655.0,0.34008761]
[1641908549172,0.37542,41657.0,41655.0,0.35508761]
[1641908549376,0.59380404,41656.0,41655.0,0.35508761]
[1641908550072,0.59380404,41657.0,41655.0,0.35508761]
[1641908550315,0.37542,41656.0,41655.0,0.35508761]
[1641908550516,0.37542,41656.0,41655.0,0.34008761]
[1641908551114,0.37564311,41656.0,41655.0,0.34008761]
[1641908551317,0.37564311,41656.0,41655.0,0.36108761]
[1641908551918,0.00022311,41656.0,41655.0,0.36108761]
[1641908552515,0.00022311,41656.0,41655.0,0.220046]
[1641908553116,9.58442872,41658.0,41655.0,0.220046]
[1641908553316,0.37542,41657.0,41655.0,0.242046]
[1641908553969,0.36542,41657.0,41655.0,0.36209034]
[1641908554573,9.58442872,41658.0,41655.0,0.34009034]
[1641908554773,0.375523,41657.0,41655.0,0.220046]
[1641908555170,0.375523,41657.0,41655.0,0.257046]
[1641908555871,0.375523,41657.0,41655.0,0.31706748]
[1641908556070,0.00023528,41656.0,41655.0,0.31706748]
[1641908556470,0.00023528,41656.0,41655.0,0.28006748]
[1641908557271,0.00023528,41656.0,41655.0,0.21706748]
[1641908557471,0.00023528,41656.0,41655.0,0.157046]
[1641908557720,0.37575828,41656.0,41655.0,0.157046]
[1641908558514,0.37575828,41656.0,41655.0,0.220046]
[1641908558916,0.00023528,41656.0,41655.0,0.220046]
[1641908559415,0.00023528,41656.0,41655.0,0.257046]
[1641908560616,0.00023528,41656.0,41655.0,0.220046]
[1641908561217,0.00023528,41656.0,41655.0,0.250046]
[1641908562471,0.00023528,41656.0,41655.0,0.220046]
[1641908563273,0.00023528,41656.0,41655.0,0.253046]
[1641908564474,0.00023528,41656.0,41655.0,0.220046]
[1641908565318,0.00023528,41656.0,41655.0,0.253046]
[1641908565519,0.37575828,41656.0,41655.0,0.253046]
[1641908565721,0.69756067,41656.0,41655.0,0.033]
[1641908566119,0.42365481,41656.0,41655.0,0.03319461]
[1641908566322,1.43352314,41656.0,41655.0,0.03319461]
[1641908566521,1.43352314,41656.0,41655.0,0.00019461]
[1641908567322,1.44052314,41656.0,41655.0,0.00019461]
[1641908568122,1.54052314,41656.0,41655.0,0.00019461]
[1641908568521,1.53352314,41656.0,41655.0,0.00019461]
[1641908569373,1.54452314,41656.0,41655.0,0.00019461]
[1641908569576,1.39682314,41656.0,41655.0,0.00019461]
[1641908570375,0.37695481,41656.0,41655.0,0.28842129]
[1641908570579,0.36595481,41656.0,41655.0,0.38842129]
[1641908570777,0.36595481,41656.0,41655.0,0.10019461]
[1641908571178,0.36618904,41656.0,41655.0,0.1]
[1641908571379,0.39318904,41656.0,41655.0,0.106]
[1641908571979,0.39318904,41656.0,41655.0,0.056]
[1641908572178,0.39318904,41656.0,41655.0,0.106]
[1641908572578,0.36618904,41656.0,41655.0,0.1]
[1641908573418,0.39318904,41656.0,41655.0,0.056]
[1641908573620,0.39318904,41656.0,41655.0,0.106]
[1641908574319,0.39318904,41656.0,41655.0,0.056]
[1641908574522,0.39318904,41656.0,41655.0,0.05]
[1641908574719,0.36618904,41656.0,41655.0,0.05]
[1641908575121,0.36618904,41656.0,41653.0,0.12006892]
[1641908575325,0.37818904,41656.0,41655.0,0.005]
[1641908576572,0.37818904,41656.0,41653.0,0.160036]
[1641908576573,0.97397832,41656.0,41653.0,0.160036]
[1641908576774,0.96197832,41656.0,41654.0,0.1033867]
[1641908576975,0.96197832,41656.0,41654.0,0.1533867]
[1641908577378,0.98797832,41656.0,41654.0,0.1613867]
[1641908577774,0.39218904,41656.0,41654.0,0.1613867]
[1641908578376,0.59578928,41657.0,41654.0,0.1613867]
[1641908578578,0.59578928,41657.0,41655.0,0.10259113]
[1641908578776,0.59578928,41657.0,41656.0,0.04800405]
[1641908578979,8.62619996,41658.0,41656.0,0.09800405]
[1641908579177,8.62619996,41658.0,41656.0,0.05]
[1641908579478,8.14610796,41658.0,41656.0,0.061]
[1641908579682,7.66601596,41658.0,41656.0,0.061]
[1641908579878,7.07022668,41658.0,41656.0,0.061]
[1641908580077,6.11001768,41658.0,41656.0,0.061]
[1641908580918,5.62991168,41658.0,41656.0,0.061]
[1641908581318,0.00022283,41657.0,41656.0,0.066]
[1641908581817,5.62991168,41658.0,41656.0,0.066]
[1641908582018,5.14983568,41658.0,41657.0,0.34839519]
[1641908582217,4.18968307,41658.0,41657.0,0.34839519]
[1641908582621,3.22953907,41658.0,41657.0,0.34839519]
[1641908582817,3.00019253,41658.0,41657.0,0.34839519]
[1641908583222,3.00019253,41658.0,41656.0,0.6]
[1641908583419,3.00019253,41658.0,41657.0,0.016]
[1641908583619,3.33298453,41658.0,41657.0,0.016]
[1641908584676,3.33298453,41658.0,41656.0,0.5]
[1641908584875,0.375529,41657.0,41656.0,0.5]
[1641908585075,0.375529,41657.0,41656.0,0.6]
[1641908585278,0.375529,41657.0,41656.0,0.1]
[1641908585477,0.97249939,41657.0,41656.0,0.06]
[1641908586078,0.97249939,41657.0,41656.0,0.01]
[1641908586277,0.37574069,41657.0,41656.0,0.01]
[1641908586679,0.37574069,41657.0,41653.0,0.55]
[1641908587478,0.37574069,41657.0,41653.0,0.582]
[1641908587479,0.97971108,41657.0,41653.0,0.582]
[1641908588729,0.59697039,41656.0,41653.0,0.55]
[1641908589227,0.59718208,41657.0,41653.0,0.670052]
[1641908589428,0.59718208,41657.0,41653.0,0.24480158]
[1641908589429,0.006,41656.0,41653.0,0.24480158]
[1641908589628,0.006,41656.0,41654.0,0.05]
[1641908589827,0.006,41656.0,41655.0,0.04487728]
[1641908590028,0.006,41656.0,41655.0,0.09487728]
[1641908590428,0.006,41656.0,41655.0,0.14487728]
[1641908590833,0.006,41656.0,41655.0,0.64487728]
[1641908591227,0.00021138,41656.0,41655.0,0.64487728]
[1641908591469,0.00621138,41656.0,41655.0,0.65687728]
[1641908591671,0.00621138,41656.0,41655.0,0.612]
[1641908593271,0.00021138,41656.0,41655.0,0.6]
[1641908593475,0.00621138,41656.0,41655.0,0.612]
[1641908594572,0.00621138,41656.0,41655.0,0.6]
[1641908594877,0.00021138,41656.0,41655.0,0.6]
[1641908595318,0.37573738,41656.0,41655.0,0.612]
[1641908595518,0.38273738,41656.0,41655.0,0.612]
[1641908595919,0.74222651,41656.0,41655.0,0.512]
[1641908596126,0.88992651,41656.0,41655.0,0.512]
[1641908596320,0.65,41655.0,41646.0,1.1122949]
[1641908596520,0.380434,41654.0,41646.0,1.1122949]
[1641908596719,0.380434,41654.0,41646.0,0.0004362]
[1641908596720,0.00129817,41652.0,41646.0,0.0004362]
[1641908596919,0.483274,41651.0,41646.0,0.0004362]
[1641908597119,0.583274,41651.0,41646.0,0.0004362]
[1641908597519,0.583274,41651.0,41646.0,0.02043624]
[1641908597720,1.17771732,41651.0,41646.0,0.02043624]
[1641908598624,0.060047,41648.0,41646.0,0.02043625]
[1641908598820,0.332734,41647.0,41646.0,0.02043625]
[1641908599087,0.67376979,41647.0,41646.0,0.02043625]
[1641908599384,0.341734,41647.0,41646.0,0.04043625]
[1641908599983,0.341734,41647.0,41646.0,0.04]
[1641908600983,0.332734,41647.0,41644.0,0.0011399]
[1641908601193,0.33294259,41647.0,41644.0,0.00070364]
[1641908601684,0.67454839,41647.0,41644.0,0.00070364]
[1641908601885,0.510056,41645.0,41644.0,0.00070364]
[1641908602085,0.435582,41645.0,41644.0,0.00070364]
[1641908602285,0.435582,41645.0,41644.0,0.00026738]
[1641908602485,0.79380562,41645.0,41644.0,0.00026738]
[1641908603321,0.435582,41645.0,41644.0,0.00026738]
[1641908603522,0.445582,41645.0,41644.0,0.02426738]
[1641908605122,0.385526,41645.0,41644.0,0.02426738]
[1641908605322,0.375526,41645.0,41644.0,0.00026738]
[1641908605522,0.384526,41645.0,41644.0,0.02226738]
[1641908606328,0.38473397,41645.0,41644.0,0.02226738]
[1641908606569,0.38473397,41645.0,41644.0,0.12226738]
[1641908606771,0.37573397,41645.0,41644.0,0.10026738]
[1641908606972,0.37573397,41645.0,41644.0,0.00026738]
[1641908607373,0.38473397,41645.0,41644.0,0.02126738]
[1641908607571,0.38473397,41645.0,41644.0,0.27600385]
[1641908607772,0.00920797,41645.0,41644.0,0.02126738]
[1641908608771,0.00920797,41645.0,41644.0,0.35001465]
[1641908608976,0.00920797,41645.0,41644.0,0.40001465]
[1641908609373,0.00520797,41645.0,41644.0,0.74061898]
[1641908609576,0.00520797,41645.0,41644.0,1.21614498]
[1641908609976,0.00520797,41645.0,41644.0,0.76754065]
[1641908610623,0.00020797,41645.0,41644.0,0.75454065]
[1641908611225,0.00744175,41650.0,41645.0,0.36944484]
[1641908611426,0.00744175,41650.0,41647.0,0.060032]
[1641908612328,0.00744175,41650.0,41646.0,0.05]
[1641908612627,0.375526,41649.0,41645.0,0.120064]
[1641908612825,0.371026,41649.0,41645.0,0.120064]
[1641908613026,0.371026,41649.0,41646.0,0.00043623]
[1641908613226,0.39942575,41649.0,41646.0,0.00043623]
[1641908613826,0.39942575,41649.0,41646.0,0.10043623]
[1641908614276,0.39942575,41649.0,41646.0,0.1]
[1641908615470,0.40642575,41649.0,41646.0,0.125]
[1641908615673,0.40642575,41649.0,41646.0,0.44671948]
[1641908615870,0.40642575,41649.0,41646.0,0.125]
[1641908616270,0.0002089,41648.0,41646.0,0.125]
[1641908616471,0.332734,41647.0,41646.0,0.125]
[1641908616670,0.0002089,41648.0,41646.0,0.1]
[1641908616875,0.3665648,41647.0,41646.0,0.1]
[1641908617371,0.008,41647.0,41646.0,0.126]
[1641908618622,0.0002089,41648.0,41646.0,0.1]
[1641908619122,0.52781777,41647.0,41646.0,0.1]
[1641908619426,0.9122786,41647.0,41646.0,0.027]
[1641908619823,1.5122786,41647.0,41646.0,0.027]
[1641908620027,0.62781777,41647.0,41646.0,0.027]
[1641908620226,0.375575,41647.0,41646.0,0.027]
[1641908620422,0.70272611,41648.0,41646.0,0.027]
[1641908620621,0.70272611,41648.0,41645.0,0.04335358]
[1641908620821,0.69372611,41648.0,41645.0,0.0468439]
[1641908621022,0.0002089,41648.0,41645.0,0.43221338]
[1641908621224,1.02016146,41647.0,41645.0,0.14554048]
[1641908621478,1.02016146,41647.0,41645.0,0.117]
[1641908621675,1.02016146,41647.0,41645.0,0.16428586]
[1641908621875,0.00020859,41647.0,41645.0,0.16428586]
[1641908622276,0.00020859,41647.0,41645.0,0.48880419]
[1641908622677,0.00020859,41647.0,41645.0,0.47180419]
[1641908623279,0.00020859,41647.0,41645.0,0.42597367]
[1641908623577,0.00020859,41647.0,41645.0,0.44197367]
[1641908624776,0.00020859,41647.0,41646.0,0.3504991]
[1641908624979,0.00020859,41647.0,41646.0,0.41053097]
[1641908625427,0.60069267,41650.0,41646.0,0.41053097]
[1641908625428,0.60069267,41650.0,41647.0,0.65]
[1641908625627,0.60069267,41650.0,41647.0,0.760025]
[1641908625927,0.60069267,41650.0,41648.0,0.0425041]
[1641908626126,0.12052567,41650.0,41649.0,0.40054874]
[1641908626327,0.12052567,41654.0,41650.0,0.00120181]
[1641908626528,0.12052567,41654.0,41651.0,0.1800719]
[1641908626928,0.12052567,41654.0,41652.0,0.38016795]
[1641908627326,0.12052567,41654.0,41652.0,0.05]
[1641908627529,0.12052567,41654.0,41652.0,0.06]
[1641908627729,0.12052567,41654.0,41652.0,0.41292541]
[1641908628327,0.70080811,41656.0,41652.0,0.71965475]
[1641908628729,0.70080811,41657.0,41653.0,0.120052]
[1641908628983,0.375575,41656.0,41654.0,0.1]
[1641908629583,0.375575,41656.0,41654.0,0.107]
[1641908629584,0.414575,41656.0,41654.0,0.107]
[1641908630783,0.375575,41656.0,41654.0,0.1]
[1641908631283,0.00020064,41655.0,41654.0,0.1]
[1641908631484,0.00020064,41655.0,41654.0,0.107]
[1641908632927,0.37577564,41655.0,41654.0,0.107]
[1641908633423,0.41477564,41655.0,41654.0,0.106]
[1641908634623,0.41477564,41655.0,41654.0,0.1]
[1641908634828,0.37577564,41655.0,41654.0,0.1]
[1641908635226,0.37577564,41655.0,41653.0,0.120052]
[1641908635425,0.38877564,41655.0,41654.0,0.006]
[1641908636672,0.37577564,41655.0,41653.0,0.04577807]
[1641908637072,0.37577564,41655.0,41652.0,0.060025]
[1641908637273,0.37577564,41655.0,41653.0,0.08986499]
[1641908637477,0.38777564,41655.0,41653.0,0.109]
[1641908638075,0.38777564,41655.0,41653.0,0.059]
[1641908638374,0.38777564,41655.0,41654.0,0.04794048]
[1641908638775,0.37577564,41655.0,41654.0,0.04794048]
[1641908639776,0.37577564,41655.0,41654.0,0.32353499]
[1641908639978,0.37577564,41655.0,41653.0,0.1]
[1641908640234,0.37577564,41655.0,41653.0,0.05]
[1641908640631,0.37577564,41655.0,41653.0,0.1]
[1641908641030,0.37577564,41655.0,41653.0,0.05]
[1641908641431,0.37577564,41655.0,41653.0,0.108]
[1641908641632,0.38664564,41655.0,41653.0,0.058]
[1641908642233,1.08745375,41655.0,41653.0,0.058]
[1641908642835,1.07645375,41655.0,41653.0,0.05]
[1641908643534,1.08645375,41655.0,41653.0,0.058]
[1641908644374,1.08645375,41655.0,41653.0,0.108]
[1641908644574,0.70080811,41654.0,41653.0,0.008]
[1641908644773,1.01997811,41654.0,41651.0,0.05]
[1641908644973,0.375575,41653.0,41651.0,0.05]
[1641908645178,0.375575,41653.0,41650.0,0.1]
[1641908645376,1.01977729,41654.0,41651.0,0.120063]
[1641908645575,0.381575,41653.0,41651.0,0.128063]
[1641908645774,0.381575,41653.0,41652.0,0.05]
[1641908645975,1.08035212,41653.0,41652.0,0.05]
[1641908646275,1.08054564,41653.0,41652.0,0.05]
[1641908646776,1.07454564,41653.0,41652.0,0.05]
[1641908647578,1.08954564,41653.0,41652.0,0.05]
[1641908648831,1.07454564,41653.0,41652.0,0.05]
[1641908649531,1.08954564,41653.0,41652.0,0.05]
[1641908650732,1.43419984,41653.0,41652.0,0.05]
[1641908650931,1.755215,41653.0,41652.0,0.05]
[1641908651133,1.75548067,41653.0,41652.0,0.05]
[1641908651332,1.3955608,41653.0,41652.0,0.05]
[1641908651576,1.4025608,41653.0,41652.0,0.05]
[1641908651976,1.5025608,41653.0,41652.0,0.05]
[1641908653081,1.3955608,41653.0,41652.0,0.05]
[1641908653277,1.4955608,41653.0,41652.0,0.05]
[1641908653680,1.5025608,41653.0,41652.0,0.066]
[1641908654579,1.87081502,41653.0,41652.0,0.066]
[1641908654777,1.87081502,41653.0,41651.0,0.060032]
[1641908654980,1.87081502,41653.0,41646.0,0.00043621]
[1641908654981,0.81009001,41652.0,41646.0,0.00043621]
[1641908655231,0.375575,41648.0,41646.0,0.00043621]
[1641908655426,1.32389116,41647.0,41646.0,0.00043621]
[1641908655632,0.87389116,41647.0,41646.0,0.00043621]
[1641908656228,1.89368344,41647.0,41644.0,0.12080265]
[1641908657027,0.69750608,41645.0,41644.0,0.12080265]
[1641908657226,1.36205563,41645.0,41644.0,0.12080265]
[1641908657427,1.46205563,41645.0,41644.0,0.12036638]
[1641908657627,1.47005563,41645.0,41644.0,0.12036638]
[1641908658828,1.46205563,41645.0,41644.0,0.12036638]
[1641908659675,1.47405563,41645.0,41644.0,0.12036638]
[1641908660677,1.47405563,41645.0,41644.0,0.00026738]
[1641908661077,1.47424667,41645.0,41644.0,0.00026738]
[1641908661275,0.77674059,41645.0,41644.0,0.00026738]
[1641908661476,1.7846936,41645.0,41644.0,0.00026738]
[1641908661679,1.80816526,41645.0,41644.0,0.00026738]
[1641908662378,0.78821225,41645.0,41644.0,0.00026738]
[1641908662831,0.82413296,41645.0,41644.0,0.00026738]
[1641908663532,1.17413296,41645.0,41644.0,0.00026738]
[1641908663729,0.83613296,41645.0,41644.0,0.00026738]
[1641908663931,0.0012689,41641.0,41639.0,0.00064963]
[1641908664129,0.379237,41640.0,41639.0,0.00064963]
[1641908664327,0.72020091,41640.0,41639.0,0.00064963]
[1641908664529,0.82020091,41640.0,41639.0,0.00064963]
[1641908665629,0.84220091,41640.0,41639.0,0.00064963]
[1641908666231,0.8423904,41640.0,41639.0,0.00064963]
[1641908666872,0.8203904,41640.0,41639.0,0.00064963]
[1641908667676,0.8393904,41640.0,41639.0,0.00064963]
[1641908667877,0.8994564,41640.0,41639.0,0.00064963]
[1641908668476,0.86461585,41640.0,41639.0,0.00064963]
[1641908668682,0.52435191,41640.0,41639.0,0.00064963]
[1641908668877,0.50535191,41640.0,41639.0,0.00064963]
[1641908669077,0.44528591,41640.0,41639.0,0.00064963]
[1641908669281,0.34528591,41640.0,41639.0,0.00064963]
[1641908669681,0.37128591,41640.0,41639.0,0.00064963]
[1641908670825,0.34528591,41640.0,41639.0,0.00064963]
[1641908671022,0.44528591,41640.0,41639.0,0.00064963]
[1641908671227,0.34528591,41640.0,41639.0,0.00064963]
[1641908671623,0.38128591,41640.0,41639.0,0.00064963]
[1641908672024,0.06211591,41640.0,41639.0,0.00064963]
[1641908672826,0.02611591,41640.0,41639.0,0.00064963]
[1641908673627,0.06111591,41640.0,41639.0,0.00064963]
[1641908674878,0.02611591,41640.0,41639.0,0.00064963]
[1641908675481,0.00018949,41640.0,41639.0,0.00064963]
[1641908675679,0.00018949,41640.0,41639.0,0.03481453]
[1641908675680,0.01218949,41640.0,41639.0,0.03481453]
[1641908675880,0.01218949,41640.0,41639.0,0.03812519]
[1641908676078,0.01218949,41640.0,41639.0,0.05064963]
[1641908676579,0.01218949,41640.0,41639.0,0.37622463]
[1641908676779,0.01218949,41640.0,41639.0,0.05064963]
[1641908676977,0.00018949,41640.0,41639.0,0.05064963]
[1641908677178,0.00018949,41640.0,41639.0,0.00064963]
[1641908677380,0.00018949,41640.0,41639.0,0.0379871]
[1641908677577,0.00018949,41640.0,41639.0,0.00064963]
[1641908677578,0.01118949,41640.0,41639.0,0.00064963]
[1641908678928,0.00018949,41640.0,41639.0,0.00064963]
[1641908679726,0.02718949,41640.0,41639.0,0.00064963]
[1641908680928,0.00018949,41640.0,41639.0,0.00064963]
[1641908681129,0.59713765,41643.0,41639.0,0.00064963]
[1641908681329,0.375575,41642.0,41639.0,0.00064963]
[1641908681584,0.375575,41642.0,41641.0,0.3109812]
[1641908681779,0.60013765,41643.0,41641.0,0.3609812]
[1641908681980,0.60013765,41643.0,41641.0,0.36220029]
[1641908681981,0.11986365,41643.0,41641.0,0.36220029]
[1641908682181,0.69643952,41645.0,41641.0,0.36220029]
[1641908682380,0.69643952,41644.0,41641.0,0.36220029]
[1641908682580,0.69643952,41649.0,41641.0,0.36220029]
[1641908682780,0.69643952,41649.0,41648.0,0.27428226]
[1641908682981,0.69643952,41649.0,41648.0,0.05]
[1641908683180,0.375575,41649.0,41648.0,0.05]
[1641908683779,0.413575,41649.0,41648.0,0.055]
[1641908684185,0.513575,41649.0,41648.0,0.055]
[1641908684381,0.513575,41649.0,41648.0,0.005]
[1641908684782,1.5334363,41649.0,41648.0,0.005]
[1641908684981,1.4954363,41649.0,41641.0,0.06005]
[1641908685237,1.1198613,41649.0,41641.0,0.06005]
[1641908685527,1.1198613,41649.0,41640.0,0.4012206]
[1641908685725,1.1268613,41649.0,41641.0,0.013]
[1641908686327,0.69655146,41644.0,41641.0,0.013]
[1641908686928,0.74425146,41644.0,41640.0,0.17052572]
[1641908687728,0.69655146,41643.0,41640.0,0.13052572]
[1641908687928,0.79655146,41643.0,41640.0,0.13052572]
[1641908688129,1.14100615,41643.0,41640.0,0.13052572]
[1641908688727,1.14100615,41643.0,41640.0,0.130092]
[1641908688728,0.79655146,41643.0,41640.0,0.130092]